fUSD/lending_fUSD_20260207
["ID","MTS","AMOUNT","RATE_DAILY","PERIOD"]
[404697968,1770478297475,-604.9,0.00035616,120]
[404697969,1770478297485,-604.9,0.00035616,120]
[404697970,1770478297495,-604.9,0.00035616,120]
[404697971,1770478297505,-604.9,0.00035616,120]
[404697972,1770478297515,-604.9,0.00035616,120]
[404697973,1770478297525,-604.9,0.00035616,120]
[404697974,1770478297535,-604.9,0.00035616,120]
[404697975,1770478297545,-604.9,0.00035616,120]
[404697976,1770478297555,-604.9,0.00035616,120]
[404697977,1770478297564,-604.9,0.00035616,120]
[404697978,1770478297575,-604.9,0.00035616,120]
[404697979,1770478297584,-604.9,0.00035616,120]
[404697980,1770478297594,-604.9,0.00035616,120]
[404697981,1770478297604,-604.90801333,0.00035616,120]
[404697982,1770478297614,-500.0,0.00035616,120]
[404697983,1770478297624,-260.11573446,0.00035616,120]
[404697984,1770478297634,-1272.68,0.00035616,120]
[404697985,1770478297644,-1272.68,0.00035616,120]
[404697986,1770478297654,-1272.68,0.00035616,120]
[404697987,1770478297664,-1272.68,0.00035616,120]
[404697988,1770478297673,-1272.68,0.00035616,120]
[404697989,1770478297683,-1272.68,0.00035616,120]
[404697990,1770478297693,-1272.68,0.00035616,120]
[404697991,1770478297703,-1272.68,0.00035616,120]
[404697992,1770478297713,-1272.68,0.00035616,120]
[404697993,1770478297723,-1272.68,0.00035616,120]
[404697994,1770478297734,-1272.68,0.00035616,120]
[404697995,1770478297744,-1272.68,0.00035616,120]
[404697996,1770478297754,-1272.68,0.00035616,120]
[404697997,1770478297764,-1272.68,0.00035616,120]
[404697998,1770478297775,-1272.68,0.00035616,120]
[404697999,1770478297784,-1272.68,0.00035616,120]
[404698000,1770478297794,-1272.68,0.00035616,120]
[404698001,1770478297803,-1272.68,0.00035616,120]
[404698002,1770478297813,-1272.68,0.00035616,120]
[404698003,1770478297822,-1272.68,0.00035616,120]
[404698004,1770478297832,-1272.68,0.00035616,120]
[404698005,1770478297842,-1272.68,0.00035616,120]
[404698006,1770478297851,-1272.68,0.00035616,120]
[404698007,1770478297862,-1272.8028037,0.00035616,120]
[404698008,1770478297872,-500.0,0.00035616,120]
[404698009,1770478297882,-486.14761799,0.00035616,120]
[404698010,1770478297891,-151.91231216,0.00035616,120]
[404698011,1770478297901,-168.50406066,0.00035616,120]
[404698012,1770478297911,-500.0,0.00035616,120]
[404698013,1770478297921,-500.0,0.00035616,120]
[404698014,1770478297931,-500.0,0.00035616,120]
[404698015,1770478297940,-500.0,0.00035616,120]
[404698016,1770478297949,-500.0,0.00035616,120]
[404698017,1770478297962,-500.0,0.00035616,120]
[404698018,1770478297971,-500.0,0.00035616,120]
[404698019,1770478297982,-209.72917489,0.00035616,120]
[404698020,1770478297992,-500.0,0.00035616,120]
[404698021,1770478298002,-500.0,0.00035616,120]
[404698022,1770478298013,-500.0,0.00035616,120]
[404698023,1770478298025,-530.37198261,0.00035616,120]
[404698024,1770478298041,-500.0,0.00035616,120]
[404698025,1770478298055,-371.31706927,0.00035616,120]
[404698026,1770478298069,-329.12929277,0.00035616,120]
[404698027,1770478298086,-500.0,0.00035616,120]
[404698028,1770478298098,-500.0,0.00035616,120]
[404698029,1770478298108,-635.92711969,0.00035616,120]
[404698030,1770478298119,-200.34449069,0.00035616,120]
[404698031,1770478298130,-171.60401407,0.00035616,120]
[404698032,1770478298140,-500.0,0.00035616,120]
[404698033,1770478298150,-500.0,0.00035616,120]
[404698034,1770478298164,-500.0,0.00035616,120]
[404698035,1770478298181,-500.0,0.00035616,120]
[404698036,1770478298191,-500.0,0.00035616,120]
[404698037,1770478298201,-500.0,0.00035616,120]
[404698038,1770478298212,-500.0,0.00035616,120]
[404698039,1770478298227,-225.49939605,0.00035616,120]
[404698040,1770478298237,-500.0,0.00035616,120]
[404698041,1770478298247,-500.0,0.00035616,120]
[404698042,1770478298257,-400.76254482,0.00035616,120]
[404698043,1770478298267,-206.94879255,0.00035616,120]
[404698044,1770478298280,-193.48247632,0.00035616,14]
[404698045,1770478298290,-319.29852367,0.00035616,120]
[404698046,1770478298299,-176.61898553,0.00035616,120]
[404698047,1770478298308,-156.73123317,0.00035616,120]
[404698048,1770478298319,-322.47602067,0.00035616,120]
[404698049,1770478298329,-2275.7,0.00035616,120]
[404698050,1770478298339,-2275.7,0.00035616,120]
[404698051,1770478298350,-2275.7,0.00035616,120]
[404698052,1770478298360,-2275.7,0.00035616,120]
[404698053,1770478298371,-2275.7,0.00035616,120]
[404698054,1770478298381,-2275.7,0.00035616,120]
[404698055,1770478298391,-2275.7,0.00035616,120]
[404698056,1770478298401,-2275.7,0.00035616,120]
[404698057,1770478298411,-2275.7,0.00035616,120]
[404698058,1770478298420,-2275.7,0.00035616,120]
[404698059,1770478298430,-1042.65,0.00035616,120]
[404698060,1770478298439,-2275.7,0.00035616,120]
[404698061,1770478298449,-1042.65,0.00035616,120]
[404698062,1770478298459,-2275.7,0.00035616,120]
[404698063,1770478298468,-1042.65,0.00035616,120]
[404698064,1770478298478,-2275.7,0.00035616,120]
[404698065,1770478298488,-192.48707619,0.00035616,120]
[404698066,1770478298497,-1042.65,0.00035616,120]
[404698067,1770478298507,-2275.7,0.00035616,120]
[404698068,1770478298516,-1042.65,0.00035616,120]
[404698069,1770478298527,-2275.7,0.00035616,120]
[404698070,1770478298537,-1042.65,0.00035616,120]
[404698071,1770478298547,-2275.7,0.00035616,120]
[404698072,1770478298556,-1042.65,0.00035616,120]
[404698073,1770478298565,-2275.7,0.00035616,120]
[404698074,1770478298574,-1042.65,0.00035616,120]
[404698075,1770478298583,-2275.7,0.00035616,120]
[404698076,1770478298593,-1042.65,0.00035616,120]
[404698077,1770478298603,-2275.7,0.00035616,120]
[404698078,1770478298612,-1042.65,0.00035616,120]
[404698079,1770478298622,-2275.7,0.00035616,120]
[404698080,1770478298632,-500.0,0.00035616,120]
[404698081,1770478298642,-2275.7,0.00035616,120]
[404698082,1770478298653,-1042.65,0.00035616,120]
[404698083,1770478298664,-500.0,0.00035616,120]
[404698084,1770478298674,-2275.7,0.00035616,120]
[404698085,1770478298684,-1042.65,0.00035616,120]
[404698086,1770478298694,-158.9088724,0.00035616,120]
[404698087,1770478298705,-2275.7,0.00035616,120]
[404698088,1770478298715,-1042.65,0.00035616,120]
[404698089,1770478298725,-2275.89154334,0.00035616,120]
[404698090,1770478298735,-1042.65,0.00035616,120]
[404698091,1770478298746,-1042.65,0.00035616,120]
[404698092,1770478298756,-1042.65,0.00035616,120]
[404698093,1770478298767,-1042.65,0.00035616,120]
[404698094,1770478298777,-1042.65,0.00035616,120]
[404698095,1770478298785,-1042.65,0.00035616,120]
[404698096,1770478298794,-1042.65,0.00035616,120]
[404698097,1770478298804,-1042.65,0.00035616,120]
[404698098,1770478298814,-1042.65,0.00035616,120]
[404698099,1770478298824,-1042.65,0.00035616,120]
[404698100,1770478298834,-1042.78465396,0.00035616,120]
[404698101,1770478298853,-500.0,0.00035616,120]
[404698102,1770478298873,-500.0,0.00035616,120]
[404698103,1770478298887,-500.0,0.00035616,120]
[404698104,1770478298898,-500.0,0.00035616,120]
[404698105,1770478298910,-500.0,0.00035616,120]
[404698106,1770478298922,-500.0,0.00035616,120]
[404698107,1770478298932,-500.0,0.00035616,120]
[404698108,1770478298942,-500.0,0.00035616,120]
[404698109,1770478298952,-500.0,0.00035616,120]
[404698110,1770478298967,-361.95679091,0.00035616,120]
[404698111,1770478298976,-596.26760153,0.00035616,120]
[404698112,1770478298986,-500.0,0.00035616,120]
[404698113,1770478298997,-500.0,0.00035616,120]
[404698114,1770478299007,-500.0,0.00035616,120]
[404698115,1770478299017,-500.0,0.00035616,120]
[404698116,1770478299028,-394.55765182,0.00035616,120]
[404698117,1770478299039,-7057.75,0.00035616,120]
[404698118,1770478299048,-7057.75,0.00035616,120]
[404698119,1770478299057,-7057.75,0.00035616,120]
[404698120,1770478299067,-500.0,0.00035616,120]
[404698121,1770478299076,-500.0,0.00035616,120]
[404698122,1770478299085,-7057.75,0.00035616,120]
[404698123,1770478299095,-7057.75,0.00035616,120]
[404698124,1770478299105,-500.0,0.00035616,120]
[404698125,1770478299116,-500.0,0.00035616,120]
[404698126,1770478299126,-7057.75,0.00035616,120]
[404698127,1770478299135,-500.0,0.00035616,120]
[404698128,1770478299145,-7057.75,0.00035616,120]
[404698129,1770478299154,-500.0,0.00035616,120]
[404698130,1770478299164,-7057.75,0.00035616,120]
[404698131,1770478299173,-179.67994106,0.00035616,120]
[404698132,1770478299183,-7057.75,0.00035616,120]
[404698133,1770478299193,-333.03193125,0.00035616,120]
[404698134,1770478299203,-7057.75,0.00035616,120]
[404698135,1770478299213,-7057.75,0.00035616,120]
[404698136,1770478299223,-7057.75,0.00035616,120]
[404698137,1770478299233,-7057.75,0.00035616,120]
[404698138,1770478299243,-7057.75,0.00035616,120]
[404698139,1770478299253,-7057.75,0.00035616,120]
[404698140,1770478299265,-7057.75,0.00035616,120]
[404698141,1770478299278,-7057.75,0.00035616,120]
[404698142,1770478299300,-7057.75,0.00035616,120]
[404698143,1770478299310,-7057.75,0.00035616,120]
[404698144,1770478299318,-7057.75,0.00035616,120]
[404698145,1770478299327,-7057.75,0.00035616,120]
[404698146,1770478299338,-7057.75,0.00035616,120]
[404698147,1770478299348,-237.56980597,0.00035616,120]
[404698148,1770478299359,-500.0,0.00035616,120]
[404698149,1770478299369,-7057.75,0.00035616,120]
[404698150,1770478299379,-500.0,0.00035616,120]
[404698151,1770478299389,-7057.91976342,0.00035616,120]
[404698152,1770478299399,-500.0,0.00035616,120]
[404698153,1770478299408,-500.0,0.00035616,120]
[404698154,1770478299418,-640.68942474,0.00035616,120]
[404698155,1770478299429,-246.92634377,0.00035616,120]
[404698156,1770478299439,-500.0,0.00035616,120]
[404698157,1770478299450,-500.0,0.00035616,120]
[404698158,1770478299462,-500.0,0.00035616,120]
[404698159,1770478299480,-243.53078136,0.00035616,120]
[404698160,1770478299496,-500.0,0.00035616,120]
[404698161,1770478299507,-500.0,0.00035616,120]
[404698162,1770478299519,-634.37977516,0.00035616,120]
[404698163,1770478299528,-500.0,0.00035616,120]
[404698164,1770478299538,-210.36716271,0.00035616,120]
[404698165,1770478299552,-500.0,0.00035616,120]
[404698166,1770478299562,-500.0,0.00035616,120]
[404698167,1770478299571,-543.63000319,0.00035616,120]
[404698168,1770478299581,-584.55907584,0.00035616,120]
[404698169,1770478299590,-256.62695533,0.00035616,120]
[404698170,1770478299599,-500.0,0.00035616,120]
[404698171,1770478299608,-253.33307865,0.00035616,120]
[404698172,1770478299618,-194.06724193,0.00035616,120]
[404698173,1770478299627,-500.0,0.00035616,120]
[404698174,1770478299637,-493.67414204,0.00035616,120]
[404698175,1770478299646,-500.0,0.00035616,120]
[404698176,1770478299655,-194.3954,0.00035616,120]
[404698177,1770478299665,-500.0,0.00035616,120]
[404698178,1770478299674,-500.0,0.00035616,120]
[404698179,1770478299684,-150.70487095,0.00035616,120]
[404698180,1770478299694,-547.11294971,0.00035616,120]
[404698181,1770478299703,-204.36178781,0.00035616,120]
[404698182,1770478299713,-223.80485003,0.00035616,120]
[404698183,1770478299724,-172.97329733,0.00035616,120]
[404698184,1770478299734,-274.57314628,0.00035616,120]
[404698185,1770478299743,-193.55851263,0.00035616,120]
[404698186,1770478299753,-235.6558339,0.00035616,30]
[404698187,1770478299762,-365.97248347,0.00035616,120]
[404698188,1770478299773,-162.53022899,0.00035616,120]
[404698189,1770478299783,-265.32175288,0.00035616,120]
[404698190,1770478299793,-219.22573578,0.00035616,120]
[404698191,1770478299803,-171.51954264,0.00035616,120]
[404698192,1770478299812,-358.70613154,0.00035616,120]
[404698193,1770478299822,-341.35789632,0.00035616,120]
[404698194,1770478299831,-500.0,0.00035616,120]
[404698195,1770478299840,-407.1396537,0.00035616,120]
[404698196,1770478299850,-178.14228765,0.00035616,120]
[404698197,1770478299860,-596.4330328,0.00035616,120]
[404698198,1770478299869,-281.77834943,0.00035616,120]
[404698199,1770478299879,-268.29020358,0.00035616,120]
[404698200,1770478299888,-384.39588563,0.00035616,120]
[404698201,1770478299898,-500.0,0.00035616,120]
[404698202,1770478299907,-204.4124626,0.00035616,120]
[404698203,1770478299917,-452.39213667,0.00035616,120]
[404698204,1770478299926,-500.0,0.00035616,120]
[404698205,1770478299936,-500.0,0.00035616,120]
[404698206,1770478299945,-500.0,0.00035616,120]
[404698207,1770478299955,-500.0,0.00035616,120]
[404698208,1770478299967,-500.0,0.00035616,120]
[404698209,1770478299977,-500.0,0.00035616,2]
[404698210,1770478299987,-500.0,0.00035616,120]
[404698211,1770478299998,-500.0,0.00035616,2]
[404698212,1770478300008,-500.0,0.00035616,120]
[404698213,1770478300017,-161.55018496,0.00035616,2]
[404698214,1770478300029,-527.3340787,0.00035616,120]
[404698215,1770478300039,-501.01345191,0.00035616,120]
[404698216,1770478300049,-199.19834239,0.00035616,120]
[404698217,1770478300059,-936.28,0.00035616,120]
[404698218,1770478300068,-936.28,0.00035616,120]
[404698219,1770478300077,-936.28,0.00035616,120]
[404698220,1770478300088,-936.28,0.00035616,120]
[404698221,1770478300098,-936.28,0.00035616,120]
[404698222,1770478300107,-936.28,0.00035616,120]
[404698223,1770478300116,-936.28,0.00035616,120]
[404698224,1770478300126,-936.28,0.00035616,120]
[404698225,1770478300136,-936.28,0.00035616,120]
[404698226,1770478300146,-936.28,0.00035616,120]
[404698227,1770478300155,-936.28,0.00035616,120]
[404698228,1770478300164,-936.28,0.00035616,120]
[404698229,1770478300174,-500.0,0.00035616,120]
[404698230,1770478300184,-936.28,0.00035616,120]
[404698231,1770478300194,-468.05477039,0.00035616,120]
[404698232,1770478300205,-936.28,0.00035616,120]
[404698233,1770478300220,-936.28,0.00035616,120]
[404698234,1770478300230,-936.28,0.00035616,120]
[404698235,1770478300240,-936.28,0.00035616,120]
[404698236,1770478300250,-936.28,0.00035616,120]
[404698237,1770478300260,-936.28,0.00035616,120]
[404698238,1770478300271,-936.28,0.00035616,120]
[404698239,1770478300282,-936.28,0.00035616,120]
[404698240,1770478300292,-936.28,0.00035616,120]
[404698241,1770478300302,-936.28,0.00035616,120]
[404698242,1770478300312,-936.39666476,0.00035616,120]
[404698243,1770478300321,-500.0,0.00035616,120]
[404698244,1770478300331,-500.0,0.00035616,120]
[404698245,1770478300341,-500.0,0.00035616,120]
[404698246,1770478300351,-191.06052013,0.00035616,120]
[404698247,1770478300362,-500.0,0.00035616,120]
[404698248,1770478300372,-415.99684931,0.00035616,120]
[404698249,1770478300382,-4751.06,0.00035616,120]
[404698250,1770478300392,-4751.06,0.00035616,120]
[404698251,1770478300402,-289.68,0.00035616,2]
[404698252,1770478300412,-655.708955,0.00035616,31]
[404698253,1770478300422,-655.708955,0.00035616,31]
[404698254,1770478300431,-655.708955,0.00035616,31]
[404698255,1770478300441,-655.708955,0.00035616,31]
[404698256,1770478300451,-655.708955,0.00035616,31]
[404698257,1770478300460,-655.708955,0.00035616,31]
[404698258,1770478300471,-655.708955,0.00035616,31]
[404698259,1770478300480,-655.708955,0.00035616,31]
[404698260,1770478300490,-655.708955,0.00035616,31]
[404698261,1770478300500,-655.708955,0.00035616,31]
[404698262,1770478300510,-655.708955,0.00035616,31]
[404698263,1770478300525,-655.708955,0.00035616,31]
[404698264,1770478300535,-655.708955,0.00035616,31]
[404698265,1770478300546,-655.708955,0.00035616,31]
[404698266,1770478300556,-655.708955,0.00035616,31]
[404698267,1770478300567,-655.708955,0.00035616,31]
[404698268,1770478300576,-655.708955,0.00035616,31]
[404698269,1770478300586,-655.708955,0.00035616,31]
[404698270,1770478300597,-655.708955,0.00035616,31]
[404698271,1770478300607,-655.708958,0.00035616,31]
[404698272,1770478300617,-245.30258564,0.00035643,7]
[404698273,1770478300627,-150.0,0.00035657,7]
[404698274,1770478300637,-150.0,0.00035657,7]
[404698275,1770478300647,-150.0,0.00035657,7]
[404698276,1770478300657,-150.0,0.00035657,7]
[404698277,1770478300667,-150.0,0.00035747,7]
[404698278,1770478300677,-150.0,0.00035833,7]
[404698279,1770478300687,-250.00000099,0.00035834,2]
[404698280,1770478300697,-150.0,0.00035853,7]
[404698281,1770478300707,-507.0,0.00035872,18]
[404698282,1770478300717,-245.30258564,0.00035887,7]
[404698283,1770478300726,-500.0,0.00035892,14]
[404698284,1770478300736,-2000.0,0.000359,2]
[404698285,1770478300745,-21505.25485023,0.00035988,7]
[404698286,1770478301063,-500.0,0.00035988,7]
[404698287,1770478301077,-6908.66575108,0.00035988,7]
[404698288,1770478301089,-5002.41055306,0.00035988,7]
[404698289,1770478301100,-454.54293655,0.00035988,7]
[404698394,1770479431685,-166.66,0.00014478,2]
[404698395,1770479431695,-600.0,0.0001463,2]
[404698396,1770479431705,-166.66,0.00014782,2]
[404698397,1770479431715,-182.11,0.000149,2]
[404698398,1770479431725,-600.0,0.00014902,2]
[404698399,1770479431735,-487.10430916,0.00014913,2]
[404698400,1770479431746,-500.0,0.00014935,2]
[404698401,1770479431758,-166.66,0.00015087,2]
[404698402,1770479431767,-500.0,0.00015173,2]
[404698403,1770479431776,-500.0,0.00015173,2]
[404698404,1770479431786,-310.72048062,0.00015229,2]
[404698405,1770479431795,-570.06631835,0.00015391,2]
[404698406,1770479431807,-629.93368165,0.00015391,2]
[404698407,1770479431817,-166.66,0.00015392,2]
[404698408,1770479431826,-294.74136326,0.00015536,2]
[404698409,1770479431838,-1302.39580057,0.00015536,2]
[404698410,1770479431848,-1463.6613409,0.00015536,2]
[404698411,1770479431858,-912.42549724,0.00015597,2]
[404698412,1770479431868,-4288.5281966,0.00015597,2]
[404698413,1770479431879,-163.30639067,0.00015603,2]
[404698414,1770479431890,-152.62,0.00015603,2]
[404698415,1770479431899,-11040.87423749,0.00015613,2]
[404698416,1770479431914,-287.19999024,0.00015613,2]
[404698417,1770479431933,-377.31590528,0.00015613,2]
[404698418,1770479431946,-2170.0,0.00015613,2]
[404698419,1770479431957,-1085.39999998,0.00015613,2]
[404698420,1770479431969,-797.59445327,0.00015613,2]
[404698421,1770479431980,-1182.23847243,0.00015613,2]
[404698422,1770479431992,-977.37552332,0.00015613,2]
[404698423,1770479432004,-789.33,0.00015613,2]
[404698424,1770479432015,-8341.948,0.00015613,2]
[404698425,1770479432028,-678.91954423,0.00015613,2]
[404698426,1770479432040,-678.45,0.00015613,2]
[404698427,1770479432051,-2932.00000001,0.00015613,2]
[404698442,1770479438359,-292.29781805,0.00015536,2]
[404698443,1770479438372,-2465.95687834,0.00015536,2]
[404698444,1770479438381,-1534.04312165,0.00015613,2]
[404698445,1770479438393,-20310.0,0.00015613,2]
[404698446,1770479438405,-9646.80529468,0.00015613,2]
[404698447,1770479438416,-2080.0,0.00015613,2]
[404698448,1770479438427,-19265.89671864,0.00015613,2]
[404698449,1770479438438,-705.800015,0.00015613,2]
[404698450,1770479438454,-1510125.38745299,0.00015613,2]
[404698451,1770479438465,-334.615,0.00015613,2]
[404698452,1770479438514,-272292.47200892,0.00015613,2]
[404698571,1770479439884,-883.15138334,0.00015613,2]
[404698573,1770479439896,-380.30947352,0.00015613,2]
[404698576,1770479439908,-542.688,0.00015613,2]
[404698592,1770479440065,-126960.61176242,0.00015613,2]
[404698595,1770479440077,-242028.7626935,0.00015613,2]
[404698613,1770479440247,-1960.0,0.00015613,2]
[404698615,1770479440263,-3565.18647994,0.00015613,2]
[404698617,1770479440275,-13151.61818528,0.00015613,2]
[404698620,1770479440288,-1965.0,0.00015613,2]
[404698836,1770479443739,-151.0,0.0001561,2]
[404698837,1770479443749,-1589.03923694,0.00015613,2]
[404698838,1770479444778,-261.999998,0.00015613,2]
[404698839,1770479444789,-1860.39881757,0.00015613,2]
[404698840,1770479444799,-68578.93823183,0.00015613,2]
[404698841,1770479444821,-32589.10714352,0.00015613,2]
[404698842,1770479444834,-7188.72231171,0.00015613,2]
[404698843,1770479444845,-290.0,0.00015613,2]
[404698844,1770479444857,-1016.49353724,0.00015613,2]
[404698845,1770479444869,-6339.06703949,0.00015613,2]
[404698858,1770479445125,-1844.40697459,0.00015613,2]
[404698859,1770479445138,-18570.00518933,0.00015613,2]
[404698860,1770479445790,-6753.6,0.00015613,2]
[404698861,1770479445802,-3311.80000005,0.00015613,2]
[404698862,1770479445814,-2565.3,0.00015613,2]
[404698863,1770479445825,-5632.25459061,0.00015613,2]
[404698864,1770479445837,-420.60232107,0.00015613,2]
[404698865,1770479445847,-298.18821722,0.00015613,2]
[404698866,1770479445859,-19610.0,0.00015613,2]
[404698867,1770479446077,-4099.40000004,0.00015613,2]
[404698870,1770479446089,-8425.52058596,0.00015613,2]
[404698872,1770479446101,-4074.12,0.00015613,2]
[404698874,1770479446113,-5733.32618933,0.00015613,2]
[404698876,1770479446124,-883.4800005,0.00015613,2]
[404698883,1770479470975,39.16469151,8.915e-05,2]
[404698884,1770479471001,1001.0,8.915e-05,2]
[404698885,1770479471030,192.83530849,8.915e-05,2]
[404698925,1770480631925,-243.0,0.00011386,2]
[404698927,1770480631935,-60.8818997,0.00011386,2]
[404698929,1770480631947,-610.53759736,0.00011386,2]
[404698931,1770480631958,-1077.80050294,0.00011386,2]
[404698933,1770480631968,-250.0,0.00012525,2]
[404698935,1770480631978,-600.0,0.00013782,2]
[404698938,1770480631993,-590.72109805,0.00014184,2]
[404698944,1770480632095,-409.27890195,0.00014184,2]
[404698945,1770480632105,-500.0,0.00014436,2]
[404698946,1770480632114,-1968.60065426,0.00014436,2]
[404698947,1770480632124,-57.17044379,0.00014496,2]
[404698948,1770480632136,-92.82955621,0.00014496,2]
[404698949,1770480632146,-1200.0,0.00014512,2]
[404698950,1770480632155,-200.0,0.00014528,2]
[404698952,1770480632166,-300.0,0.00014531,2]
[404698954,1770480632176,-250.0,0.00014532,2]
[404698956,1770480632186,-300.0,0.00014532,2]
[404698958,1770480632197,-1200.0,0.00014534,2]
[404698961,1770480632208,-500.0,0.00014535,2]
[404698963,1770480632219,-806.74073709,0.00014754,2]
[404698965,1770480632230,-500.0,0.000148,2]
[404698966,1770480632247,-167.0,0.00014849,2]
[404698969,1770480632257,-804.0,0.0001487,2]
[404698970,1770480632267,-971.52047173,0.00014902,2]
[404698972,1770480632279,-661.45952827,0.00014902,2]
[404698974,1770480632288,-2607.15302155,0.00015073,2]
[404698975,1770480632299,-422.81516774,0.00015073,2]
[404698976,1770480632312,-385.00293256,0.00015073,2]
[404698980,1770480638801,-2859.01879774,0.00015012,2]
[404698981,1770480638812,-565.35692728,0.00015073,2]
[404698982,1770480638825,-1711848.51785417,0.00015073,2]
[404698983,1770480638955,-307.92957538,0.00015073,2]
[404698984,1770480638968,-2188.98332652,0.00015073,2]
[404698985,1770480638981,-754.07848955,0.00015073,2]
[404698986,1770480639004,-11045.45764713,0.00015073,2]
[404698987,1770480639016,-20918.79592586,0.00015073,2]
[404699096,1770480640126,-2316.21,0.00015073,2]
[404699134,1770480640611,-759.13278534,0.00015073,2]
[404699136,1770480640623,-438.19500007,0.00015073,2]
[404699363,1770480646686,-2298.54558035,0.00014998,2]
[404699364,1770480646696,-151.0,0.0001507,2]
[404699365,1770480646706,-340.86633555,0.00015073,2]
[404699367,1770480646718,-105340.26251832,0.00015073,2]
[404699369,1770480646729,-459.58986104,0.00015073,2]
[404699371,1770480646740,-19187.38279918,0.00015073,2]
[404699373,1770480646871,-975.77422726,0.00015012,2]
[404699374,1770480646881,-236.09569764,0.00015012,2]
[404699375,1770480646890,-5180.45256391,0.00015073,2]
[404699376,1770480647017,-597.52253752,0.00015073,2]
[404699377,1770480647028,-6927.35576,0.00015073,2]
[404699378,1770480647040,-2681.09432384,0.00015073,2]
[404699402,1770480648176,-5425.68928676,0.00014998,2]
[404699403,1770480648188,-260.19512506,0.00014998,2]
[404699404,1770480648200,-32008.39285702,0.00014998,2]
[404699405,1770480648210,-656851.32101984,0.00015073,2]
[404699406,1770480648222,-147061.75266091,0.00015073,2]
[404699407,1770480648233,-7479.22643389,0.00015073,2]
[404699408,1770480648248,-5315.1,0.00015073,2]
[404699409,1770480648259,-44119.40684828,0.00015073,2]
[404699410,1770480648271,-2448.77003185,0.00015073,2]
[404699587,1770481832211,-250.0,0.000135,2]
[404699588,1770481832253,-750.0,0.000135,2]
[404699589,1770481832263,-300.0,0.00013525,2]
[404699590,1770481832273,-437.4,0.00013549,2]
[404699591,1770481832283,-250.0,0.00013569,2]
[404699592,1770481832293,-1200.0,0.00013588,2]
[404699593,1770481832303,-1200.0,0.00013588,2]
[404699594,1770481832312,-300.0,0.00013588,2]
[404699595,1770481832321,-300.0,0.00013588,2]
[404699596,1770481832331,-5024.20134906,0.00013589,2]
[404699605,1770481838287,-310.62160552,0.00013589,2]
[404699606,1770481838299,-3058.73478254,0.00013589,2]
[404699607,1770481838395,-9664.0,0.00013589,2]
[404699608,1770481838408,-5772.86226288,0.00013589,2]
[404699609,1770481838418,-33304.9777,0.00013693,2]
[404699610,1770481838428,-3178.50847605,0.0001372,2]
[404699611,1770481838438,-1878.6107785,0.0001372,2]
[404699612,1770481838449,-608.28366482,0.0001372,2]
[404699613,1770481838458,-150.0,0.00013727,2]
[404699614,1770481838468,-407.26017224,0.00013728,2]
[404699615,1770481838477,-44695.30920149,0.00013728,2]
[404699616,1770481838487,-2897.236834,0.00013728,2]
[404699617,1770481838497,-150.0,0.00013765,2]
[404699619,1770481838507,-150.0,0.00013765,2]
[404699621,1770481838517,-151.0,0.0001379,2]
[404699623,1770481838526,-500.0,0.00013791,2]
[404699625,1770481838535,-500.53909213,0.00013791,2]
[404699627,1770481838545,-500.0,0.00013791,2]
[404699629,1770481838555,-154.78736686,0.00013791,2]
[404699631,1770481838565,-500.0,0.00013791,2]
[404699633,1770481838575,-348.46888021,0.00013791,2]
[404699635,1770481838585,-253.83271447,0.00013791,2]
[404699637,1770481838595,-500.0,0.00013791,2]
[404699639,1770481838605,-500.0,0.00013791,2]
[404699641,1770481838615,-500.0,0.00013791,2]
[404699643,1770481838625,-500.0,0.00013791,2]
[404699645,1770481838635,-500.0,0.00013791,2]